Cogmind - Beta 14 *** ADVENTURER MODE // 2024.08.21 @ 18:06:34 Player: LegoMDS Result: Destroyed by D-53 Grenadier with Mini Grenade Launcher Performance ------------- Evolutions (0) 0 Regions Visited (2) 400 Robots Destroyed (30) 150 Value Destroyed (587) 587 Prototype IDs (0) 0 Alien Tech Used (0) 0 Bonus (8) 8 TOTAL SCORE: 1145 Bonus ------- High Alert Combat Kills 8 Cogmind --------- Core Integrity 0/250 Matter 191/300 Energy 92/265 System Corruption 0% Temperature Cool (0) Movement Walking (120) Location -10/Mines Parts ------- > --- POWER (1) -------- Improved Ion Engine > --- PROPULSION (2) --- Aluminum Leg Aluminum Leg > --- UTILITY (2) ------ Small Storage Unit Light Armor Plating > --- WEAPON (2) ------- (None) > --- INVENTORY (8) ---- Aluminum Leg Aluminum Leg Heat Sink Targeting Computer ECM Suite Medium Laser Light Cannon Peak State ------------ > --- POWER ------------ Improved Ion Engine > --- PROPULSION ------- Aluminum Leg Aluminum Leg > --- UTILITY ---------- Heat Sink Small Storage Unit > --- WEAPON ----------- Medium Laser Light Assault Rifle > --- INVENTORY -------- Improved Ion Engine Aluminum Leg Aluminum Leg Targeting Computer ECM Suite Light Armor Plating Light Cannon Rocket Launcher [Rating: 9] Favorites ----------- Power Light Ion Engine Engine Light Ion Engine Propulsion Aluminum Leg Leg Aluminum Leg Utility Small Storage Unit Device Heat Sink Storage Small Storage Unit Protection Light Armor Plating Weapon Light Assault Rifle Energy Gun Medium Laser Ballistic Gun Light Assault Rifle Launcher Rocket Launcher Build | -11 -10 -10 ------- Run | Yrd Mat Min Slots Evolved . | . . . Power . | . . . Propulsion . | . . . Utility . | . . . Weapon . | . . . Parts Attached 20 | 6 5 9 Power 5 | 1 1 3 Engine 5 | 1 1 3 Core . | . . . Reactor . | . . . Propulsion 7 | 2 2 3 Treads . | . . . Leg 7 | 2 2 3 Wheel . | . . . Hover . | . . . Flight . | . . . Utility 4 | 1 1 2 Device 2 | . 1 1 Storage 1 | 1 . . Processor . | . . . Hackware . | . . . Protection 1 | . . 1 Artifact . | . . . Weapon 4 | 2 1 1 Energy Gun 2 | 1 1 . Energy Cannon . | . . . Ballistic Gun 1 | 1 . . Ballistic Cannon . | . . . Launcher 1 | . . 1 Special Weapon . | . . . Impact Weapon . | . . . Slashing Weapon . | . . . Piercing Weapon . | . . . Special Melee Weapon . | . . . Unidentified Prototypes . | . . . Parts Lost 5 | . 1 4 Power 2 | . 1 1 Propulsion 1 | . . 1 Utility . | . . . Weapon 2 | . . 2 Highest Loss Streak 3 | . 1 3 To Critical Strikes . | . . . Average Slot Usage (%) 98 | . 96 99 Engine 14 | . 14 14 Leg 28 | . 28 28 Device 12 | . 10 13 Storage 14 | . 14 14 Energy Gun 13 | . 14 13 Ballistic Gun 14 | . 14 14 Peak Build Rating 9 | 6 7 9 Average Rating 7 | 3 6 8 On Entrance 4 | . 6 7 Naked Turns . | . . . Heaviest Build 18 | 10 12 18 Greatest Support 20 | 20 20 20 Greatest Overweight (x) . | . . . Average Overweight (x) . | . . . Largest Inventory Capacity 8 | 8 8 8 Average Capacity 7 | 7 8 8 Most Carried 8 | 4 8 8 Average Carried 6 | 1 4 7 Final Capacity 8 | 8 8 8 Final Carried 8 | 2 8 7 Class Distribution -------------------- 71% | Mutant 28% | Scavenger-Mutant Dominant Class ---------------- Mutant | -10/Materials Scavenger-Mutant | -10/Mines Resources | -11 -10 -10 ----------- Run | Yrd Mat Min Matter Collected 429 | 202 141 86 Remotely . | . . . Salvage Created 758 | . 344 414 Parts 50 | . 23 27 Haulers Intercepted . | . . . Recyclers Shooed 2 | . 1 1 Parts Field Recycled . | . . . Retrieved Matter . | . . . Parts Self-Destructed . | . . . Prevented . | . . . Kills | -11 -10 -10 ------- Run | Yrd Mat Min Combat Hostiles Destroyed 45 | . 12 33 Guns 29 | . 12 17 AOE 16 | . . 16 Classes Destroyed 5 | . 3 2 Watcher 2 | . 2 . Swarmer 18 | . 6 12 Grunt 8 | . 6 2 Sentry 2 | . . 2 Assembled 17 | . . 17 Best Kill Streak 17 | . 5 17 Combat Bots Only 17 | . 5 17 Max Kills in Single Turn 5 | . 2 5 Gunslinging . | . . . Exploded 5 | . . 5 Melee . | . . . Uniques/NPCs Destroyed . | . . . Combat | -11 -10 -10 -------- Run | Yrd Mat Min Hostile Shots Fired 177 | . 61 116 Missed 53 | . 21 32 Damage Taken 1154 | . 313 841 Core 274 | . 70 204 Absorbed by Shields . | . . . Ignored by Resistances 347 | . 99 248 Core Remaining (%) 100 | 100 . . Volleys Fired 86 | . 38 48 Largest 2 | . 2 2 Hottest 70 | . 70 70 Shots Fired 169 | . 75 94 Gun 162 | . 75 87 Cannon . | . . . Launcher 7 | . . 7 Special . | . . . Kinetic 86 | . 38 48 Thermal 76 | . 37 39 Explosive 7 | . . 7 Electromagnetic . | . . . Robot Hit Streak 12 | . 12 8 Robot Miss Streak 4 | . 3 4 Penetration Max . | . . . Secondary Targets 8 | . 5 3 Max Gunslinging Chain 1 | . 1 1 Shots Hit Robots 107 | . 54 53 Core Hits 78 | . 25 53 Critical Kills 1 | . . 1 Critical Parts Destroyed . | . . . Critical Strikes 6 | . . 6 Burn 5 | . . 5 Destroy 1 | . . 1 Melee Attacks . | . . . Impact . | . . . Slashing . | . . . Piercing . | . . . Sneak Attacks . | . . . Combat Hostiles . | . . . Follow-up Attacks . | . . . Damage Inflicted 2370 | . 521 1849 Guns 1047 | . 521 526 Cannons . | . . . Explosions 1323 | . . 1323 Melee . | . . . Ramming . | . . . Kinetic 421 | . 192 229 Thermal 626 | . 329 297 Explosive 1323 | . . 1323 Electromagnetic . | . . . Impact . | . . . Slashing . | . . . Piercing . | . . . Highest Corruption . | . . . Average Corruption . | . . . Corruption Purged . | . . . Corruption Blocked . | . . . Overload Shots . | . . . Overflow Damage 15 | . . 15 Projectiles . | . . . Explosions 15 | . . 15 Melee . | . . . Knockbacks . | . . . Impact . | . . . Kinetic . | . . . Secondary . | . . . Self-Inflicted Damage 12 | . . 12 Shots 1 | . . 1 Rammed . | . . . Targets Rammed . | . . . Kicked . | . . . Crushed . | . . . Highest Temperature 90 | . 90 24 Average Temperature 17 | . 26 10 Received Heat Transfer 170 | . 138 32 Siege Activations . | . . . Robots Corrupted . | . . . Combat Hostiles . | . . . Parts Fried . | . . . Impact Corruptions . | . . . Robots Melted . | . . . Combat Hostiles . | . . . Parts Melted 4 | . 1 3 Heat Transferred 2055 | . 797 1258 Parts Sabotaged . | . . . Parts Stolen . | . . . Parts Stripped . | . . . Power Chain Reactions . | . . . Alert | -11 -10 -10 ------- Run | Yrd Mat Min Peak Influence 413 | . 338 413 Initial 53 | . . 53 Average 174 | . 146 222 Maximum Alert Level 2 | . 1 2 Low Security (%) 55 | 100 73 30 Level 1 42 | . 26 63 Level 2 2 | . . 5 Level 3 . | . . . Level 4 . | . . . Level 5 . | . . . High Security . | . . . Max Security . | . . . Squads Dispatched 4 | . 3 1 Investigation 4 | . 3 1 Extermination . | . . . Reinforcement . | . . . Assault . | . . . Garrison . | . . . Intercept . | . . . Searches Triggered . | . . . Construction Impeded . | . . . Haulers Reinforced . | . . . Active Scanning Responses . | . . . Cargo Convoy Interrupts . | . . . Stealth | -11 -10 -10 --------- Run | Yrd Mat Min Distress Signals 1 | . 1 . Communications Jammed . | . . . Distress Signals . | . . . Times Spotted 50 | . 16 34 Peak Tracking Total 14 | . 6 14 Tactical Retreats . | . . . Traps | -11 -10 -10 ------- Run | Yrd Mat Min Traps Triggered 2 | . 2 . Indirectly . | . . . Trap Hack Attempts . | . . . Triggered . | . . . Disarmed . | . . . Reprogrammed . | . . . Reused . | . . . Traps Extracted . | . . . Installed . | . . . Triggered . | . . . Machines | -11 -10 -10 ---------- Run | Yrd Mat Min Machines Disabled . | . . . Max in Single Turn . | . . . Machines Repaired . | . . . Machines Dismantled . | . . . Machines Sabotaged . | . . . Overloaded Fab Kills . | . . . Hacking | -11 -10 -10 --------- Run | Yrd Mat Min Machines Accessed 6 | . 5 1 Terminals 6 | . 5 1 Fabricators . | . . . Repair Stations . | . . . Recycling Units . | . . . Scanalyzers . | . . . Garrison Access . | . . . Total Hacks 16 | . 13 3 Successful 9 | . 8 1 Failed 7 | . 5 2 Catastrophic 2 | . 1 1 Database Lockouts . | . . . Manual 6 | . 5 1 Terminals 16 | . 13 3 Fabricators . | . . . Repair Stations . | . . . Recycling Units . | . . . Scanalyzers . | . . . Garrison Access . | . . . Terminal Hacks 8 | . 7 1 Record 1 | . 1 . Robot Analysis 1 | . 1 . Branch Access Points 1 | . 1 . Locate Traps 3 | . 3 . Zone Layout 2 | . 1 1 Fabricator Hacks . | . . . Repair Station Hacks . | . . . Recycling Unit Hacks . | . . . Scanalyzer . | . . . Garrison Access Hacks . | . . . Unauthorized Hacks 1 | . 1 . Terminals 1 | . 1 . Search 1 | . 1 . Fabricators . | . . . Repair Stations . | . . . Recycling Units . | . . . Scanalyzers . | . . . Garrison Access . | . . . Data Cores Recovered . | . . . Used . | . . . Hacking Detections 4 | . 3 1 Full Trace Events 2 | . 1 1 Feedback Events . | . . . Feedback Blocked . | . . . Robot Schematics Acquired . | . . . Robots Built . | . . . Authchips . | . . . Time . | . . . Total Robot Build Rating . | . . . Part Schematics Acquired . | . . . Parts Built . | . . . Authchips . | . . . Time . | . . . Total Part Build Rating . | . . . Parts Repaired . | . . . Time . | . . . Parts Recycled . | . . . Recycled Matter . | . . . Retrieved Matter . | . . . Retrieved Components . | . . . Parts Scanalyzed . | . . . Part Schematics Acquired . | . . . Parts Damaged . | . . . Bothacking | -11 -10 -10 ------------ Run | Yrd Mat Min Used RIF Installer . | . . . Robots Hacked . | . . . Non-combat . | . . . Combat . | . . . Robot Hacks Applied . | . . . Relay Couplers Released . | . . . Fabnet Peak Effective % . | . . . Robots Rewired . | . . . Allies Hacked . | . . . Hacks Repelled . | . . . Allies | -11 -10 -10 -------- Run | Yrd Mat Min Total Allies . | . . . Largest Group . | . . . Highest-Rated Group . | . . . Highest-Rated Ally . | . . . Total Orders . | . . . Ally Attacks . | . . . Total Damage . | . . . Kills . | . . . Allies Corrupted . | . . . Allies Melted . | . . . Intel | -11 -10 -10 ------- Run | Yrd Mat Min Robot Analysis Total 1 | . 1 . Derelict Logs Recovered . | . . . Drone Launches . | . . . Drone Recoveries . | . . . Exploration | -11 -10 -10 ------------- Run | Yrd Mat Min Turns Passed 1181 | 60 575 546 Spaces Moved 716 | 41 378 297 Core 3 | 3 . . Treads . | . . . Legs 713 | 38 378 297 Wheels . | . . . Hover . | . . . Flight . | . . . Fastest Speed 50 | 50 120 120 Average Speed 119 | 114 120 120 Slowest Speed 120 | 120 120 120 Overloaded Moves . | . . . Propulsion Burnouts . | . . . Robots Hopped . | . . . Cave-ins Triggered . | . . . Exploration Rate (%) 42 | 4 70 53 Regions Visited 2 Branch Regions 1 Pre-discovered Areas . | . . . Known Exits Taken 1 | . 1 . Unknown Exits Taken 1 | 1 . . Scrap Searched 1 | . . 1 Spaces Dug . | . . . Terrain Destroyed 47 | . . 47 Melee . | . . . Projectile . | . . . AOE 47 | . . 47 Terrain Rammed . | . . . Walls Destroyed . | . . . Machines Disabled . | . . . Actions | -11 -10 -10 --------- Run | Yrd Mat Min Total 890 | 54 432 404 Wait 37 | . . 37 Move 714 | 40 377 297 Hop . | . . . Pick Up 24 | 8 11 5 Fast Attach . | . . . Attach 12 | 6 4 2 Detach . | . . . Swap 8 | . 1 7 Drop 9 | . 1 8 Fire 86 | . 38 48 Melee . | . . . Ram . | . . . Kick . | . . . Crush . | . . . Escape Stasis . | . . . Rewire . | . . . Trap . | . . . Miscellaneous . | . . . Route ------- -11/Scrapyard -10/Materials (discovered 3 exits: [*Mat] / *Min x2) -10/Mines (discovered 2 exits: [*Mat x2]) History --------- Turn | Location | Event 6 | -11/Scrapyard | Discovered new exit (range 15) 61 | -11/Scrapyard | Entered Materials 112 | -10/Materials | Identified exit to Mines 320 | -10/Materials | Build established: Mutant 521 | -10/Materials | Discovered new exit (range 8) 636 | -10/Materials | Entered Mines 639 | -10/Mines | Joined a pair of Derelicts in attacking an 0b10 outpost 832 | -10/Mines | Core integrity fell below 50% 890 | -10/Mines | Discovered new exit (range 5) 1074 | -10/Mines | Received a Rocket Launcher from a helpful Derelict 1079 | -10/Mines | Discovered new exit (range 8) 1150 | -10/Mines | Assembled infested the area 1165 | -10/Mines | Core integrity fell below 20% 1173 | -10/Mines | Build established: Scavenger-Mutant 1182 | -10/Mines | Destroyed by D-53 Grenadier with Mini Grenade Launcher Last Messages --------------- as-75747 destroyed. as-68669 destroyed. as-80350 destroyed. Destroyed Asb. Hover Unit. as-78464 destroyed. as-56751 destroyed. as-24939 destroyed. as-45909 destroyed. K-01 Serf collects debris. as-12752 destroyed. The unstable cave ceiling collapses. K-01 Serf collects debris. C-30 ARC bursts open, deploying its payload. D-53 Grenadier unfolds itself. K-01 Serf destroyed. Rocket Launcher destroyed. The unstable cave ceiling collapses. Imp. Ion Engine destroyed. The unstable cave ceiling collapses. Lgt. Assault Rifle destroyed. Map ----- +----------------------------------------------------+ | ?????????????????????????????????????????????????? | | ?????????????????????????????????????????????????? | | ?????????????????????????????????????????????????? | | ?????????????????????????????????????????????????? | | ?????????????????????????????????????????????????? | | ?????????????????????????????????????????????????? | | ?????????????????????????????????????????????????? | | ?????????????????????????????????????????????????? | | ?????????????????????????????????????????????????? | | ?????????????????????????????????????????????????? | | ??????????????????? ????????????????????????????? | | ???????????????? #???????????????????????????? | | ?????????????? #??????????????????????????? | | ???????????? ??????????????????????????? | | ???????????? ??????????????????????????? | | ??????????? a a #?????????????????????????? | | ???????????? ##????????????????????????? | | ????????????? ##???????????????????????? | | ?????????????? #???????????????????????? | | ???????????????? # # ##??####????????????????? | | ?????????????????# #### ?????????????????? | | ?????????????????# t ## ?????????????????? | | ??????????????????# # #?????????????????? | | ??????????????????# % # ##????????????????? | | ??????????????????# ## ##???????????????? | | ??????????????????# @ t #???????????????? | | ??????????????????# d d #???????????????? | | ??????????????????## % ##???????????????? | | ??????????????????# ##r#????????????????? | | ?????????????????# # ##### #????????????????? | | ?????????????????# ####???# #????????????????? | | ?????????????????# ???????# #????????????????? | | ?????????????????## ???????# #????????????????? | | ??????????????????## ???????# ####?????????????? | | ???????????????????## ???????# #?????????????? | | ????????????????????## ???????#### #?????######??? | | ?????????????????????##??????????# #????## ##?? | | ?????????????????????????????????# #???## ### | | ????????????????????????????###### ##### | | ????????????????????????????# ]#### | | ????????????????????????????# ### #??? | | ???????????????##??#????????# ######### #?# #??? | | ???????????????# ? ###?????# #???????# #?# #??? | | ??????????????? #?????# #??###### ### #??? | | ??????????????? """ ###??# #??# ## #??? | | ???????????????? """ #### #??# ## #??? | | ???????????????? """ #??#^ # # ## #??? | | ???????????????? #??# # ^#^ ## #??? | | ????????????????# ?? ####???# # < ## #??? | | ????????????????# #??# #??????# ^ ## ## #??? | +----------------------------------------------------+ Best States ------------- Heat Dissipation 35 Energy Generation 12 Energy Capacity 265 Matter Stores 300 Matter Capacity 300 Sight Range 16 Terrain Scan Density 10 Armor Coverage 150 Resistance: KI 20 Resistance: TH 20 Resistance: EX 20 Resistance: EM 20 Resistance: I 20 Resistance: S 20 Resistance: P 20 Evasion (%) 55 Offensive Hacking 10 Item Schematics ----------------- None Robot Schematics ------------------ None Fabricated ------------ Nothing Alien Tech Used ----------------- None Achievements -------------- Brute Force Challenges ------------ None Game ------ Seed ConcussiveThermicPurifier Manual? 0 Play Time 00:11:34 Cumulative 33.0 hours Start 2024.08.21 @ 17:56:05 End 2024.08.21 @ 18:06:34 Sessions 1 Manual Loads 0 Difficulty Adventurer Special Mode None Game No. 40 Rogue 13 Adventurer 27 Explorer 0 Win Type - Total 0 Types 0/0/0/0/0/0/0/0/0 Lore% 29 Gallery% 37 Achievement% 32 Wizard Run 0 Options --------- Layout 1 ASCII 0 Keyboard 0 Movement Mouse Keybinds 0 Fullscreen 1 Font 24/Smallcaps Map View 50x35 Zoom Use 0% Tactical HUD 0 Map Filters NONE Filters NONE Steam 1 RUN: 96bc5cbf-7af3-4eea-ac60-aafa730e9f5c